fUSD/lending_fUSD_20241209
["ID","MTS","AMOUNT","RATE_DAILY","PERIOD"]
[344791930,1733788297534,514.15,0.00010958,2]
[344791931,1733788297603,514.15,0.00010958,2]
[344791932,1733788297667,514.15,0.00010958,2]
[344791933,1733788297718,514.15,0.00010987,2]
[344791934,1733788297765,514.15,0.00011096,2]
[344791935,1733788297820,514.15,0.00011096,2]
[344791936,1733788297868,514.15,0.00011097,2]
[344791937,1733788297929,514.15,0.00011097,2]
[344791938,1733788297985,514.15,0.00011097,2]
[344791939,1733788298036,514.15,0.00011097,2]
[344791940,1733788298089,514.15,0.00011098,2]
[344791941,1733788298140,514.15,0.00011098,2]
[344791942,1733788298195,514.15,0.00011098,2]
[344791943,1733788298250,514.15,0.00011098,2]
[344791944,1733788298301,514.15,0.00011098,2]
[344791945,1733788298352,514.15,0.00011098,2]
[344791946,1733788298402,514.15,0.00011098,2]
[344791947,1733788298447,514.15,0.00011098,2]
[344791948,1733788298503,514.15,0.00011098,2]
[344791949,1733788298554,514.15,0.00011098,2]
[344791950,1733788298609,514.25888923,0.00011098,2]
[344791951,1733788298808,500.0,0.00010958,2]
[344791952,1733788298853,500.0,0.00010958,2]
[344791953,1733788298898,500.0,0.00010958,2]
[344791954,1733788298948,500.0,0.00010958,2]
[344791955,1733788298994,500.0,0.00010958,2]
[344791956,1733788299044,500.0,0.00010958,2]
[344791957,1733788299094,500.0,0.00010987,2]
[344791958,1733788299162,500.0,0.00011096,2]
[344791959,1733788299226,500.0,0.00011096,2]
[344791960,1733788299276,500.0,0.00011097,2]
[344791961,1733788299331,500.0,0.00011097,2]
[344791962,1733788299374,500.0,0.00011097,2]
[344791963,1733788299428,500.0,0.00011097,2]
[344791964,1733788299474,500.0,0.00011098,2]
[344791965,1733788299523,500.0,0.00011098,2]
[344791966,1733788299571,500.0,0.00011098,2]
[344791967,1733788299616,294.33186896,0.00011098,2]
[344791968,1733788299791,308.3057276,0.00010958,2]
[344791969,1733788300169,500.0,0.00010958,2]
[344791970,1733788300364,500.0,0.00010958,2]
[344791971,1733788300415,150.0,0.00011774,2]
[344791972,1733788300568,569.70860649,0.00010958,2]
[344791973,1733788300937,500.0,0.00010958,2]
[344791974,1733788301023,500.0,0.00010958,2]
[344791975,1733788301117,500.0,0.00010958,2]
[344791976,1733788301163,500.0,0.00010958,2]
[344791977,1733788301212,500.0,0.00010958,2]
[344791978,1733788301262,500.0,0.00010958,2]
[344791979,1733788301317,500.0,0.00010958,2]
[344791980,1733788301371,500.0,0.00010958,2]
[344791981,1733788301422,500.0,0.00010958,2]
[344791982,1733788301470,401.85029282,0.00011473,2]
[344791983,1733788301521,500.0,0.00010987,2]
[344791984,1733788301567,500.0,0.00011096,2]
[344791985,1733788301611,500.0,0.00011096,2]
[344791986,1733788301659,500.0,0.00011097,2]
[344791987,1733788301722,500.0,0.00011097,2]
[344791988,1733788301766,214.50263355,0.00011097,2]
[344791989,1733788301867,500.0,0.00010958,2]
[344791990,1733788302019,500.0,0.00010958,2]
[344791991,1733788302721,500.0,0.00010958,2]
[344791992,1733788302772,536.41601793,0.00010958,2]
[344791993,1733788303175,500.0,0.00010958,2]
[344791994,1733788303226,505.37049934,0.00010958,2]
[344791995,1733788303779,150.0,0.00010677,2]
[344791996,1733788304066,500.0,0.00010958,2]
[344791997,1733788304138,501.9010004,0.00010958,2]
[344791998,1733788304255,527.93385831,0.00010958,2]
[344791999,1733788305145,473.79868793,0.00010958,2]
[344792000,1733788305248,500.0,0.00010958,2]
[344792001,1733788305365,500.0,0.00010958,2]
[344792002,1733788305490,-1000.0,0.000135,2]
[344792003,1733788305500,-600.0,0.00013579,2]
[344792004,1733788305510,-300.0,0.00013676,2]
[344792005,1733788305520,-300.0,0.00013676,2]
[344792006,1733788305530,-150.0,0.00013676,2]
[344792007,1733788305541,-150.0,0.00013676,2]
[344792008,1733788305551,-150.0,0.00013676,2]
[344792009,1733788305562,-150.0,0.00013676,2]
[344792010,1733788305572,-150.0,0.00013676,2]
[344792011,1733788305582,-150.0,0.00013676,2]
[344792012,1733788305592,-150.0,0.00013676,2]
[344792013,1733788305603,-1894.0,0.00013677,2]
[344792014,1733788305616,-563.0,0.00013677,2]
[344792015,1733788305626,-817.0,0.00013677,2]
[344792016,1733788305635,-3762.0,0.00013677,2]
[344792017,1733788305645,-1253.0,0.00013677,2]
[344792018,1733788305655,-3595.0,0.00013677,2]
[344792019,1733788305665,-973.0,0.00013677,2]
[344792020,1733788305675,-535.0,0.00013677,2]
[344792021,1733788305685,-150.0,0.00013677,2]
[344792022,1733788305695,-728.35,0.00013698,2]
[344792023,1733788305704,-728.35,0.00013698,2]
[344792024,1733788305714,-728.35,0.00013698,2]
[344792025,1733788305724,-728.35,0.00013698,2]
[344792026,1733788305733,-728.35,0.00013698,2]
[344792027,1733788305743,-728.35,0.00013698,2]
[344792028,1733788305752,-728.35,0.00013698,2]
[344792029,1733788305761,-728.35,0.00013698,2]
[344792030,1733788305770,-728.35,0.00013698,2]
[344792031,1733788305779,-219.827159,0.00013698,2]
[344792032,1733788305790,-508.522841,0.00013698,2]
[344792033,1733788305800,-728.35,0.00013698,2]
[344792034,1733788305811,-728.35,0.00013698,2]
[344792035,1733788305820,-728.35,0.00013698,2]
[344792036,1733788305830,-354.30265487,0.00013698,2]
[344792037,1733788305841,-374.04734513,0.00013698,2]
[344792038,1733788305851,-728.35,0.00013698,2]
[344792039,1733788305861,-728.35,0.00013698,2]
[344792040,1733788305871,-728.35,0.00013698,2]
[344792041,1733788305880,-728.35,0.00013698,2]
[344792042,1733788305889,-728.35,0.00013698,2]
[344792043,1733788305899,-728.35,0.00013698,2]
[344792044,1733788305908,-728.35,0.00013698,2]
[344792045,1733788305917,-728.35,0.00013698,2]
[344792046,1733788305927,-728.35,0.00013698,2]
[344792047,1733788305936,-728.48659697,0.00013698,2]
[344792048,1733788305945,-516.10077332,0.00013698,2]
[344792049,1733788305955,-2354.74,0.00013698,2]
[344792050,1733788305964,-2354.74,0.00013698,2]
[344792051,1733788305973,-2354.74,0.00013698,2]
[344792052,1733788305982,-2354.74,0.00013698,2]
[344792053,1733788305992,-2354.74,0.00013698,2]
[344792054,1733788306002,-2354.74,0.00013698,2]
[344792055,1733788306011,-2354.74,0.00013698,2]
[344792056,1733788306021,-2354.74,0.00013698,2]
[344792057,1733788306031,-2354.74,0.00013698,2]
[344792058,1733788306041,-2354.74,0.00013698,2]
[344792059,1733788306051,-2354.74,0.00013698,2]
[344792060,1733788306060,-2354.74,0.00013698,2]
[344792061,1733788306070,-2354.74,0.00013698,2]
[344792062,1733788306079,-2354.74,0.00013698,2]
[344792063,1733788306089,-2354.74,0.00013698,2]
[344792064,1733788306099,-2354.74,0.00013698,2]
[344792065,1733788306109,-2354.74,0.00013698,2]
[344792066,1733788306119,-2354.74,0.00013698,2]
[344792067,1733788306128,-2354.74,0.00013698,2]
[344792068,1733788306138,-2354.74,0.00013698,2]
[344792069,1733788306148,-2354.74,0.00013698,2]
[344792070,1733788306158,-2354.74,0.00013698,2]
[344792071,1733788306167,-2354.74,0.00013698,2]
[344792072,1733788306177,-2354.85696818,0.00013698,2]
[344792073,1733788306186,-500.0,0.00013699,2]
[344792074,1733788306196,-500.0,0.00013699,2]
[344792075,1733788306206,-500.0,0.00013699,2]
[344792076,1733788306215,-500.0,0.00013699,2]
[344792077,1733788306224,-500.0,0.00013699,2]
[344792078,1733788306234,-500.0,0.00013699,2]
[344792079,1733788306243,-500.0,0.00013699,2]
[344792080,1733788306253,-500.0,0.00013699,2]
[344792081,1733788306262,-500.0,0.00013699,2]
[344792082,1733788306272,-500.0,0.00013699,2]
[344792083,1733788306281,-500.0,0.00013699,2]
[344792084,1733788306291,-500.0,0.00013699,2]
[344792085,1733788306300,-500.0,0.00013699,2]
[344792086,1733788306311,-200.0,0.00013699,2]
[344792087,1733788306321,-800.0,0.00013699,2]
[344792088,1733788306331,-800.0,0.00013699,2]
[344792089,1733788306340,-800.0,0.00013699,2]
[344792090,1733788306350,-800.0,0.00013699,2]
[344792091,1733788306359,-800.0,0.00013699,2]
[344792092,1733788306369,-800.0,0.00013699,2]
[344792093,1733788306378,-800.0,0.00013699,2]
[344792094,1733788306388,-800.0,0.00013699,2]
[344792095,1733788306397,-800.0,0.00013699,2]
[344792096,1733788306407,-800.0,0.00013699,2]
[344792097,1733788306418,-800.0,0.00013699,2]
[344792098,1733788306428,-800.0,0.00013699,2]
[344792099,1733788306438,-171.976656,0.00013699,2]
[344792100,1733788306448,-171.976656,0.00013699,2]
[344792101,1733788306457,-171.976656,0.00013699,2]
[344792102,1733788306467,-171.976656,0.00013699,2]
[344792103,1733788306476,-171.976648,0.00013699,2]
[344792104,1733788306487,-250.0,0.00013699,2]
[344792105,1733788306497,-800.0,0.00013699,2]
[344792106,1733788306507,-800.0,0.00013699,2]
[344792107,1733788306517,-800.0,0.00013699,2]
[344792108,1733788306527,-30710.78,0.00013699,2]
[344792109,1733788306536,-800.0,0.00013699,2]
[344792110,1733788306545,-9786.13,0.00013699,2]
[344792111,1733788306555,-800.0,0.00013699,2]
[344792112,1733788306568,-800.0,0.00013699,2]
[344792113,1733788306578,-800.0,0.00013699,2]
[344792114,1733788306588,-800.0,0.00013699,2]
[344792115,1733788306599,-34374.03,0.00013699,2]
[344792116,1733788306611,-12557.28,0.00013699,2]
[344792117,1733788306620,-800.0,0.00013699,2]
[344792118,1733788306630,-692.88,0.00013699,2]
[344792119,1733788306639,-800.0,0.00013699,2]
[344792120,1733788306650,-258.6,0.00013699,2]
[344792121,1733788306659,-800.0,0.00013699,2]
[344792122,1733788306668,-800.0,0.00013699,2]
[344792123,1733788306678,-500.0,0.00013699,2]
[344792124,1733788306689,-200.0,0.00013699,2]
[344792125,1733788306699,-500.0,0.00013699,2]
[344792126,1733788306709,-528.69655978,0.00013699,2]
[344792127,1733788306719,-500.0,0.00013699,2]
[344792128,1733788306729,-500.0,0.00013699,2]
[344792129,1733788306739,-500.0,0.00013699,2]
[344792130,1733788306748,-500.0,0.00013699,2]
[344792131,1733788306758,-502.47837612,0.00013699,2]
[344792132,1733788306767,-162.60923756,0.00013699,2]
[344792133,1733788306776,-314.25042255,0.00013699,2]
[344792134,1733788306786,-300.11530689,0.00013699,2]
[344792135,1733788306795,-500.0,0.00013699,2]
[344792136,1733788306804,-162.88189204,0.00013699,2]
[344792137,1733788306816,-159.4892343,0.00013699,2]
[344792138,1733788306826,-500.0,0.00013699,2]
[344792139,1733788306835,-373.5,0.00013699,2]
[344792140,1733788306845,-1000.0,0.00013792,2]
[344792141,1733788306854,-150.0,0.00013855,2]
[344792142,1733788306864,-150.0,0.00013855,2]
[344792143,1733788306873,-7500.66864913,0.000139,2]
[344792144,1733788306883,-666.68,0.00013927,2]
[344792145,1733788306891,-466.65,0.00013941,2]
[344792146,1733788306901,-269.85806681,0.00014,2]
[344792147,1733788306910,-2161.81619409,0.0001421,7]
[344792148,1733788306919,-150.0,0.00014215,2]
[344792149,1733788306928,-161.6509753,0.00014215,2]
[344792150,1733788306937,-150.0,0.00014215,2]
[344792151,1733788306947,-150.0,0.00014215,2]
[344792152,1733788306956,-500.0,0.00014215,2]
[344792153,1733788306966,-1000.0,0.00014247,2]
[344792154,1733788306975,-1000.0,0.00014247,2]
[344792155,1733788306984,-732.84636547,0.00014247,2]
[344792156,1733788306994,-1000.0,0.00014247,2]
[344792157,1733788307004,-381.39866524,0.00014247,2]
[344792158,1733788307013,-1000.0,0.00014247,2]
[344792159,1733788307023,-1000.0,0.00014247,2]
[344792160,1733788307251,-9819.3776627,0.0001439,2]
[344792161,1733788307269,-231.7,0.00014401,2]
[344792162,1733788307278,-152.04076063,0.00014489,2]
[344792163,1733788307288,-150.0,0.00014489,2]
[344792164,1733788307297,-259.03162155,0.00014489,2]
[344792165,1733788307307,-500.0,0.00014489,2]
[344792166,1733788307321,-600.0,0.00014675,2]
[344792167,1733788307330,-600.0,0.00014676,2]
[344792168,1733788307340,-640.38084898,0.00014679,2]
[344792169,1733788307349,-168.1611095,0.00014763,2]
[344792170,1733788307359,-931.63687819,0.00014763,2]
[344792171,1733788307368,-214.33347732,0.000149,2]
[344792172,1733788307378,-214.33347732,0.000149,2]
[344792173,1733788307388,-953.56520019,0.0001495,2]
[344792174,1733788307398,-1950.10910698,0.00015,2]
[344792175,1733788307408,-33021.55761091,0.00015,2]
[344792176,1733788307417,-500.0,0.00015,2]
[344792177,1733788307427,-961.61,0.00015,2]
[344792178,1733788307437,-34805.71044434,0.00015,2]
[344792179,1733788307446,-500.0,0.00015,2]
[344792180,1733788307456,-9700.0,0.00015,2]
[344792181,1733788307465,-3272.97,0.00015,2]
[344792182,1733788307475,-1000.0,0.00015046,2]
[344792183,1733788307486,-300.0,0.00015068,2]
[344792184,1733788307496,-296.18522242,0.000151,2]
[344792185,1733788307506,-1238.65,0.0001516,2]
[344792186,1733788307516,-407.563642,0.00015178,2]
[344792187,1733788307526,-666.68,0.00015193,2]
[344792188,1733788307536,-466.65,0.00015208,2]
[344792189,1733788307546,-1221.64668587,0.00015235,2]
[344792190,1733788307556,-1500.0,0.00015248,2]
[344792191,1733788307568,-1500.0,0.00015248,2]
[344792192,1733788307578,-1500.0,0.00015248,2]
[344792193,1733788307587,-1500.0,0.00015248,2]
[344792194,1733788307597,-1595.42231532,0.00015248,2]
[344792195,1733788307608,-1517.64,0.000153,2]
[344792196,1733788307618,-435.34,0.0001532,2]
[344792197,1733788307628,-435.34,0.0001532,2]
[344792198,1733788307638,-435.34,0.0001532,2]
[344792199,1733788307647,-435.34,0.0001532,2]
[344792200,1733788307658,-435.34,0.0001532,2]
[344792201,1733788307668,-1500.0,0.00015343,2]
[344792202,1733788307678,-1500.0,0.00015375,2]
[344792203,1733788307689,-1447.52370318,0.00015381,2]
[344792204,1733788307699,-15896.58166262,0.000154,2]
[344792205,1733788307708,-483.4474724,0.000154,2]
[344792206,1733788307718,-200.0,0.0001544,2]
[344792207,1733788307727,-47279.06162113,0.00015454,2]
[344792208,1733788307737,-150.0,0.00015549,2]
[344792209,1733788307747,-150.0,0.00015641,2]
[344792210,1733788307756,-1500.0,0.00015668,2]
[344792211,1733788307766,-1500.0,0.000157,2]
[344792212,1733788307775,-768.51,0.00015722,2]
[344792213,1733788307785,-768.51,0.00015722,2]
[344792214,1733788307794,-746.61,0.00015722,2]
[344792215,1733788307804,-552.1,0.00015722,2]
[344792216,1733788307816,-1500.0,0.00015766,2]
[344792217,1733788307826,-150.0,0.00015859,2]
[344792218,1733788307835,-1500.0,0.00015869,2]
[344792219,1733788307845,-5308.22886688,0.00016,2]
[344792220,1733788307854,-6942.9853671,0.00016,2]
[344792221,1733788307864,-1500.0,0.00016076,2]
[344792222,1733788307874,-9999.99,0.00016116,2]
[344792223,1733788307884,-1949.01,0.00016142,2]
[344792224,1733788307893,-435.34,0.00016142,2]
[344792225,1733788307902,-600.0,0.00016158,2]
[344792226,1733788307912,-600.0,0.0001616,2]
[344792227,1733788307921,-1500.0,0.00016176,2]
[344792228,1733788307931,-1500.0,0.00016179,2]
[344792229,1733788307941,-1500.0,0.0001619,2]
[344792230,1733788307950,-1500.0,0.00016197,2]
[344792231,1733788307960,-906.67345882,0.00016286,2]
[344792232,1733788307974,-593.32654118,0.00016286,2]
[344792233,1733788307984,-153.66773284,0.00016303,2]
[344792234,1733788307994,-1500.0,0.00016314,2]
[344792235,1733788308003,-200.0,0.0001634,2]
[344792236,1733788308012,-3172.87830023,0.00016344,2]
[344792237,1733788308022,-1500.0,0.00016396,2]
[344792238,1733788308032,-913.41,0.00016438,2]
[344792239,1733788308042,-913.41,0.00016438,2]
[344792240,1733788308051,-913.41,0.00016438,2]
[344792241,1733788308063,-913.41,0.00016438,2]
[344792242,1733788308073,-913.41,0.00016438,2]
[344792243,1733788308083,-913.41,0.00016438,2]
[344792244,1733788308093,-913.41,0.00016438,2]
[344792245,1733788308103,-913.41,0.00016438,2]
[344792246,1733788308113,-913.41,0.00016438,2]
[344792247,1733788308123,-913.41,0.00016438,2]
[344792248,1733788308133,-913.41,0.00016438,2]
[344792249,1733788308143,-913.41,0.00016438,2]
[344792250,1733788308152,-913.41,0.00016438,2]
[344792251,1733788308161,-913.41,0.00016438,2]
[344792252,1733788308170,-913.41,0.00016438,2]
[344792253,1733788308180,-913.41,0.00016438,2]
[344792254,1733788308189,-913.41,0.00016438,2]
[344792255,1733788308199,-913.41,0.00016438,2]
[344792256,1733788308209,-137.8051676,0.00016438,2]
[344792257,1733788308221,-775.6048324,0.00016438,2]
[344792258,1733788308231,-293.40345855,0.00016438,2]
[344792259,1733788308243,-620.00654145,0.00016438,2]
[344792260,1733788308253,-913.41,0.00016438,2]
[344792261,1733788308263,-913.41,0.00016438,2]
[344792262,1733788308274,-913.41,0.00016438,2]
[344792263,1733788308283,-913.60826899,0.00016438,2]
[344792264,1733788308293,-4299.95,0.00016438,2]
[344792265,1733788308303,-3590.19737135,0.00016438,2]
[344792266,1733788308318,-709.75262865,0.00016438,2]
[344792267,1733788308329,-4299.95,0.00016438,2]
[344792268,1733788308339,-4299.95,0.00016438,2]
[344792269,1733788308348,-4299.95,0.00016438,2]
[344792270,1733788308359,-4299.95,0.00016438,2]
[344792271,1733788308369,-4299.95,0.00016438,2]
[344792272,1733788308378,-4299.95,0.00016438,2]
[344792273,1733788308388,-4299.95,0.00016438,2]
[344792274,1733788308398,-4299.95,0.00016438,2]
[344792275,1733788308407,-4299.95,0.00016438,2]
[344792276,1733788308416,-4299.95,0.00016438,2]
[344792277,1733788308426,-4299.95,0.00016438,2]
[344792278,1733788308436,-4299.95,0.00016438,2]
[344792279,1733788308446,-4299.95,0.00016438,2]
[344792280,1733788308455,-4299.95,0.00016438,2]
[344792281,1733788308466,-4299.95,0.00016438,2]
[344792282,1733788308476,-4299.95,0.00016438,2]
[344792283,1733788308487,-4299.95,0.00016438,2]
[344792284,1733788308497,-4299.95,0.00016438,2]
[344792285,1733788308507,-12.51416437,0.00016438,2]
[344792286,1733788308615,-418.10455233,0.00016438,2]
[344792287,1733788308628,-3869.3312833,0.00016438,2]
[344792288,1733788308638,-1007.7187167,0.00016438,2]
[344792289,1733788308653,-3292.2312833,0.00016438,2]
[344792290,1733788308663,-4299.95,0.00016438,2]
[344792291,1733788308673,-4300.0142145,0.00016438,2]
[344792292,1733788308683,-300.0,0.00016438,2]
[344792293,1733788308694,-300.28,0.00016438,2]
[344792294,1733788308703,-200.0,0.0001649,2]
[344792295,1733788308715,-2025.99732239,0.00016546,2]
[344792296,1733788308724,-2000.0,0.00016546,2]
[344792297,1733788308734,-1202.84764534,0.00016546,2]
[344792298,1733788308744,-2068.44032938,0.00016546,2]
[344792299,1733788308754,-1500.0,0.0001655,2]
[344792300,1733788308764,-1500.0,0.00016576,2]
[344792301,1733788308774,-1500.0,0.00016581,2]
[344792302,1733788308785,-1500.0,0.00016613,2]
[344792303,1733788308794,-1434.51,0.00016658,30]
[344792304,1733788308804,-779.74896244,0.0001667,2]
[344792305,1733788308816,-1894.0,0.00016677,2]
[344792306,1733788308826,-563.0,0.00016677,2]
[344792307,1733788308836,-817.0,0.00016677,2]
[344792308,1733788308845,-3762.0,0.00016677,2]
[344792309,1733788308855,-1253.0,0.00016677,2]
[344792310,1733788308865,-3595.0,0.00016677,2]
[344792311,1733788308878,-973.0,0.00016677,2]
[344792312,1733788308888,-535.0,0.00016677,2]
[344792313,1733788308898,-150.0,0.00016677,2]
[344792314,1733788308908,-188.55,0.00016712,2]
[344792315,1733788308918,-300.0,0.00016768,2]
[344792316,1733788308927,-150.0,0.00016768,2]
[344792317,1733788308937,-150.0,0.00016768,2]
[344792318,1733788308947,-150.0,0.00016768,2]
[344792319,1733788308957,-150.0,0.00016855,2]
[344792320,1733788308966,-150.0,0.00016855,2]
[344792321,1733788308975,-692.88,0.00016895,2]
[344792322,1733788308986,-500.0,0.0001697,2]
[344792323,1733788308996,-41750.70924395,0.00017,2]
[344792324,1733788309005,-550.0,0.00017,2]
[344792325,1733788309015,-800.0,0.00017,2]
[344792326,1733788309026,-800.0,0.00017,2]
[344792327,1733788309035,-800.0,0.00017,2]
[344792328,1733788309045,-800.0,0.00017,2]
[344792329,1733788309055,-800.0,0.00017,2]
[344792330,1733788309067,-800.0,0.00017,2]
[344792331,1733788309077,-200.01,0.00017007,2]
[344792332,1733788309086,-155.0,0.00017096,30]
[344792333,1733788309096,-500.0,0.0001737,2]
[344792334,1733788309105,-1238.65,0.00017424,2]
[344792335,1733788309115,-1600.0,0.00017534,2]
[344792336,1733788309125,-256.0,0.0001754,2]
[344792337,1733788309135,-870.51,0.0001759,2]
[344792338,1733788309144,-435.34,0.0001759,2]
[344792339,1733788309154,-435.34,0.0001759,2]
[344792340,1733788309163,-435.34,0.0001759,2]
[344792341,1733788309173,-1100.0,0.0001777,2]
[344792342,1733788309182,-354.44,0.000179,2]
[344792343,1733788309192,-354.44,0.000179,2]
[344792344,1733788309201,-354.44,0.000179,2]
[344792345,1733788309211,-354.44,0.000179,2]
[344792346,1733788309220,-354.44,0.000179,2]
[344792347,1733788309230,-354.44,0.000179,2]
[344792348,1733788309240,-354.44,0.000179,2]
[344792349,1733788309250,-354.44,0.000179,2]
[344792350,1733788309260,-354.44,0.000179,2]
[344792351,1733788309270,-354.44,0.000179,2]
[344792352,1733788309280,-354.44,0.000179,2]
[344792353,1733788309289,-354.44,0.000179,2]
[344792354,1733788309298,-354.44,0.000179,2]
[344792355,1733788309307,-354.44,0.000179,2]
[344792356,1733788309319,-354.44,0.000179,2]
[344792357,1733788309328,-354.44,0.000179,2]
[344792358,1733788309337,-354.44,0.000179,2]
[344792359,1733788309347,-354.44,0.000179,2]
[344792360,1733788309356,-354.44,0.000179,2]
[344792361,1733788309365,-354.44,0.000179,2]
[344792362,1733788309375,-354.44,0.000179,2]
[344792363,1733788309384,-354.44,0.000179,2]
[344792364,1733788309393,-354.44,0.000179,2]
[344792365,1733788309402,-354.44,0.000179,2]
[344792366,1733788309411,-354.44,0.000179,2]
[344792367,1733788309422,-354.44,0.000179,2]
[344792368,1733788309431,-354.44,0.000179,2]
[344792369,1733788309440,-354.44,0.000179,2]
[344792370,1733788309449,-354.44,0.000179,2]
[344792371,1733788309458,-354.44,0.000179,2]
[344792372,1733788309468,-354.44,0.000179,2]
[344792373,1733788309477,-354.44,0.000179,2]
[344792374,1733788309486,-354.44,0.000179,2]
[344792375,1733788309496,-354.44,0.000179,2]
[344792376,1733788309505,-354.44,0.000179,2]
[344792377,1733788309514,-354.44,0.000179,2]
[344792378,1733788309524,-354.44,0.000179,2]
[344792379,1733788309534,-354.44,0.000179,2]
[344792380,1733788309543,-354.44,0.000179,2]
[344792381,1733788309553,-354.44,0.000179,2]
[344792382,1733788309563,-354.44,0.000179,2]
[344792383,1733788309572,-354.44,0.000179,2]
[344792384,1733788309582,-354.44,0.000179,2]
[344792385,1733788309591,-354.44,0.000179,2]
[344792386,1733788309601,-354.44,0.000179,2]
[344792387,1733788309615,-354.44,0.000179,2]
[344792388,1733788309625,-354.44,0.000179,2]
[344792389,1733788309635,-354.44,0.000179,2]
[344792390,1733788309645,-354.44,0.000179,2]
[344792391,1733788309654,-354.44,0.000179,2]
[344792392,1733788309664,-354.44,0.000179,2]
[344792393,1733788309673,-354.44,0.000179,2]
[344792394,1733788309686,-354.44,0.000179,2]
[344792395,1733788309696,-354.44,0.000179,2]
[344792396,1733788309706,-354.44,0.000179,2]
[344792397,1733788309715,-354.44,0.000179,2]
[344792398,1733788309725,-354.44,0.000179,2]
[344792399,1733788309735,-354.44,0.000179,2]
[344792400,1733788309745,-354.44,0.000179,2]
[344792401,1733788309755,-354.44,0.000179,2]
[344792402,1733788309765,-354.44,0.000179,2]
[344792403,1733788309774,-354.44,0.000179,2]
[344792404,1733788309784,-354.44,0.000179,2]
[344792405,1733788309793,-354.44,0.000179,2]
[344792406,1733788309803,-354.44,0.000179,2]
[344792407,1733788309814,-354.44,0.000179,2]
[344792408,1733788309823,-354.44,0.000179,2]
[344792409,1733788309832,-354.44,0.000179,2]
[344792410,1733788309841,-354.44,0.000179,2]
[344792411,1733788309850,-354.44,0.000179,2]
[344792412,1733788309860,-354.44,0.000179,2]
[344792413,1733788309869,-354.44,0.000179,2]
[344792414,1733788309878,-354.44,0.000179,2]
[344792415,1733788309887,-354.44,0.000179,2]
[344792416,1733788309896,-354.44,0.000179,2]
[344792417,1733788309905,-354.44,0.000179,2]
[344792418,1733788309915,-354.44,0.000179,2]
[344792419,1733788309924,-354.44,0.000179,2]
[344792420,1733788309933,-354.44,0.000179,2]
[344792421,1733788309943,-354.44,0.000179,2]
[344792422,1733788309952,-354.44,0.000179,2]
[344792423,1733788309961,-354.44,0.000179,2]
[344792424,1733788309971,-354.44,0.000179,2]
[344792425,1733788309980,-354.44,0.000179,2]
[344792426,1733788309989,-354.44,0.000179,2]
[344792427,1733788309999,-354.44,0.000179,2]
[344792428,1733788310008,-354.44,0.000179,2]
[344792429,1733788310017,-354.44,0.000179,2]